bitfinex/quotes_BTCUSD_20250105
["timestamp","ask_amount","ask_price","bid_price","bid_amount"]
[1736085996940,0.45409191,97809.0,97808.0,8.54e-05]
[1736085997114,0.63812391,97809.0,97808.0,8.54e-05]
[1736085997681,0.63812391,97809.0,97808.0,0.0010854]
[1736085998011,0.63812391,97809.0,97808.0,8.54e-05]
[1736085998223,0.64504391,97809.0,97808.0,8.54e-05]
[1736085998440,0.65304391,97809.0,97808.0,0.0010854]
[1736085999286,0.64612391,97809.0,97808.0,0.0010854]
[1736085999489,0.65304391,97809.0,97808.0,0.0010854]
[1736085999959,0.47612391,97809.0,97808.0,0.09725701]
[1736086000165,0.35142391,97809.0,97808.0,0.09725701]
[1736086000307,0.35142391,97809.0,97808.0,0.12239524]
[1736086000513,0.37561617,97809.0,97808.0,0.12239524]
[1736086000696,0.36761617,97809.0,97808.0,0.12139524]
[1736086001134,0.37661617,97809.0,97808.0,0.12239524]
[1736086001735,0.36761617,97809.0,97808.0,0.12139524]
[1736086001936,0.36461617,97809.0,97808.0,0.12139524]
[1736086002173,0.38808822,97809.0,97808.0,0.12239524]
[1736086002958,0.38508822,97809.0,97808.0,0.12239524]
[1736086003386,0.37708822,97809.0,97808.0,0.12139524]
[1736086003791,0.38808822,97809.0,97808.0,0.12239524]
[1736086004222,0.37908822,97809.0,97808.0,0.12139524]
[1736086004397,0.38808822,97809.0,97808.0,0.12239524]
[1736086004815,0.37908822,97809.0,97808.0,0.12139524]
[1736086005018,0.38808822,97809.0,97808.0,0.12239524]
[1736086005221,0.38608822,97809.0,97808.0,0.12239524]
[1736086005423,0.37708822,97809.0,97808.0,0.12139524]
[1736086005636,0.37908822,97809.0,97808.0,0.12139524]
[1736086006278,0.37708822,97809.0,97808.0,0.12139524]
[1736086006475,0.37908822,97809.0,97808.0,0.12139524]
[1736086007068,0.38808822,97809.0,97808.0,0.12239524]
[1736086007276,0.37908822,97809.0,97808.0,0.12139524]
[1736086007691,0.38808822,97809.0,97808.0,0.12239524]
[1736086007889,0.37908822,97809.0,97808.0,0.12139524]
[1736086008292,0.37708822,97809.0,97808.0,0.12139524]
[1736086008569,0.38608822,97809.0,97808.0,0.12239524]
[1736086008781,0.37908822,97809.0,97808.0,0.12139524]
[1736086009135,0.37708822,97809.0,97808.0,0.12139524]
[1736086009697,0.37908822,97809.0,97808.0,0.12139524]
[1736086010060,0.37708822,97809.0,97808.0,0.12139524]
[1736086010346,0.38608822,97809.0,97808.0,0.12239524]
[1736086010565,0.37908822,97809.0,97808.0,0.12139524]
[1736086010768,0.38808822,97809.0,97808.0,0.12239524]
[1736086011149,0.38808822,97809.0,97808.0,0.12139524]
[1736086011463,0.39708822,97809.0,97808.0,0.12239524]
[1736086011844,0.37908822,97809.0,97808.0,0.12139524]
[1736086012055,0.37708822,97809.0,97808.0,0.12139524]
[1736086012256,0.38808822,97809.0,97808.0,0.12239524]
[1736086013073,0.38608822,97809.0,97808.0,0.12239524]
[1736086013523,0.37908822,97809.0,97808.0,0.12139524]
[1736086013854,0.38808822,97809.0,97808.0,0.12239524]
[1736086014058,0.37908822,97809.0,97808.0,0.12139524]
[1736086014702,0.38808822,97809.0,97808.0,0.12239524]
[1736086014905,0.37908822,97809.0,97808.0,0.12139524]
[1736086015077,0.37708822,97809.0,97808.0,0.12139524]
[1736086015334,0.38808822,97809.0,97808.0,0.12239524]
[1736086015873,0.38608822,97809.0,97808.0,0.12239524]
[1736086016093,0.38808822,97809.0,97808.0,0.12239524]
[1736086016588,0.37908822,97809.0,97808.0,0.12139524]
[1736086016786,0.37708822,97809.0,97808.0,0.12139524]
[1736086016993,0.38808822,97809.0,97808.0,0.12239524]
[1736086017443,0.37908822,97809.0,97808.0,0.12139524]
[1736086017707,0.38808822,97809.0,97808.0,0.12239524]
[1736086017918,0.38808822,97809.0,97808.0,0.12139524]
[1736086018477,0.39508822,97809.0,97808.0,0.12239524]
[1736086018892,0.39708822,97809.0,97808.0,0.12239524]
[1736086020399,0.37908822,97809.0,97808.0,0.12139524]
[1736086020806,0.37908822,97809.0,97808.0,0.12239524]
[1736086020807,0.38808822,97809.0,97808.0,0.12239524]
[1736086020986,0.37908822,97809.0,97808.0,0.12139524]
[1736086021355,0.38808822,97809.0,97808.0,0.12239524]
[1736086021553,0.37908822,97809.0,97808.0,0.12139524]
[1736086021957,0.37708822,97809.0,97808.0,0.12139524]
[1736086022181,0.38608822,97809.0,97808.0,0.12239524]
[1736086022641,0.38808822,97809.0,97808.0,0.12239524]
[1736086023529,0.37908822,97809.0,97808.0,0.12139524]
[1736086023904,0.38808822,97809.0,97808.0,0.12239524]
[1736086024118,0.37908822,97809.0,97808.0,0.12139524]
[1736086024520,0.38808822,97809.0,97808.0,0.12239524]
[1736086024920,0.45948822,97809.0,97808.0,0.12139524]
[1736086025132,0.45748822,97809.0,97808.0,0.12139524]
[1736086025360,0.46648822,97809.0,97808.0,0.12239524]
[1736086025567,0.46848822,97809.0,97808.0,0.12239524]
[1736086025912,0.46648822,97809.0,97808.0,0.0010854]
[1736086026123,0.51318822,97809.0,97808.0,0.0010854]
[1736086026321,0.51518822,97809.0,97808.0,0.0010854]
[1736086026944,0.50418822,97809.0,97808.0,8.54e-05]
[1736086027397,0.56501406,97809.0,97808.0,0.0010854]
[1736086027625,0.65418822,97809.0,97808.0,8.54e-05]
[1736086027831,0.65418822,97809.0,97808.0,0.0010854]
[1736086028042,0.66318822,97809.0,97808.0,0.0010854]
[1736086028451,0.66518822,97809.0,97808.0,0.0010854]
[1736086029291,5.71518822,97809.0,97808.0,0.0010854]
[1736086029712,0.66318822,97809.0,97808.0,0.0010854]
[1736086029921,0.76717454,97809.0,97808.0,0.0010854]
[1736086030143,5.79817454,97809.0,97808.0,0.0010854]
[1736086030350,5.82117454,97809.0,97808.0,0.0010854]
[1736086030565,0.00382839,97808.0,97802.0,8.54e-05]
[1736086030785,0.58812932,97803.0,97802.0,8.54e-05]
[1736086030993,5.63812932,97803.0,97802.0,8.54e-05]
[1736086032120,5.75494403,97803.0,97802.0,0.0010854]
[1736086032335,5.76320309,97803.0,97802.0,0.0010854]
[1736086032553,5.76720309,97803.0,97802.0,4e-07]
[1736086032774,0.71720309,97803.0,97802.0,4e-07]
[1736086033184,0.35706,97794.0,97793.0,8.54e-05]
[1736086033399,0.59220588,97794.0,97793.0,8.54e-05]
[1736086034446,0.59339551,97794.0,97793.0,8.54e-05]
[1736086035236,0.60639551,97794.0,97793.0,0.0010854]
[1736086035672,0.60239551,97794.0,97793.0,0.0010854]
[1736086036090,0.60639551,97794.0,97793.0,0.0010854]
[1736086037354,0.61640124,97794.0,97793.0,0.0010854]
[1736086039419,0.65248335,97794.0,97793.0,0.0010854]
[1736086040354,0.65248335,97794.0,97793.0,0.00088104]
[1736086040561,1.16376335,97794.0,97793.0,0.00088104]
[1736086040972,1.12768124,97794.0,97793.0,0.00088104]
[1736086041395,1.13460124,97794.0,97793.0,0.00088104]
[1736086044293,1.13460124,97794.0,97793.0,0.00096644]
[1736086046443,1.13842963,97794.0,97793.0,4.4e-07]
[1736086048684,1.13460124,97794.0,97793.0,4.4e-07]
[1736086049668,1.13842963,97794.0,97793.0,4.4e-07]
[1736086049869,1.13460124,97794.0,97793.0,4.4e-07]
[1736086050120,1.12768124,97794.0,97793.0,4.4e-07]
[1736086050314,1.13842963,97794.0,97793.0,4.4e-07]
[1736086050446,1.21720323,97794.0,97793.0,4.4e-07]
[1736086054502,1.13842963,97794.0,97793.0,4.4e-07]
[1736086056583,1.13860043,97794.0,97793.0,4.4e-07]
[1736086069833,1.23009079,97794.0,97793.0,4.4e-07]
[1736086071191,1.27583598,97794.0,97793.0,4.4e-07]
[1736086072153,1.13860043,97794.0,97793.0,4.4e-07]
[1736086072351,1.24258675,97794.0,97793.0,4.4e-07]
[1736086073284,1.12785204,97794.0,97793.0,4.4e-07]
[1736086073489,1.13477204,97794.0,97793.0,4.4e-07]
[1736086074075,1.12785204,97794.0,97793.0,4.4e-07]
[1736086074278,1.13477204,97794.0,97793.0,4.4e-07]
[1736086074687,1.11177204,97794.0,97793.0,4.4e-07]
[1736086074890,1.29513472,97794.0,97793.0,4.4e-07]
[1736086076191,1.38634507,97794.0,97793.0,4.4e-07]
[1736086076631,1.20298239,97794.0,97793.0,4.4e-07]
[1736086077808,1.43201296,97794.0,97793.0,4.4e-07]
[1736086080444,1.45501296,97794.0,97793.0,4.4e-07]
[1736086080910,1.22598239,97794.0,97793.0,4.4e-07]
[1736086081385,1.22981078,97794.0,97793.0,4.4e-07]
[1736086082024,1.22598239,97794.0,97793.0,4.4e-07]
[1736086082526,1.22981078,97794.0,97793.0,4.4e-07]
[1736086086905,1.50506312,97794.0,97793.0,4.4e-07]
[1736086087123,1.49814312,97794.0,97793.0,4.4e-07]
[1736086087302,1.50506312,97794.0,97793.0,4.4e-07]
[1736086087889,1.22981078,97794.0,97793.0,4.4e-07]
[1736086089627,0.184099,97773.0,97772.0,0.1]
[1736086089826,0.29500532,97773.0,97772.0,0.10004952]
[1736086089948,0.3048329,97773.0,97772.0,0.10004952]
[1736086090817,0.3058329,97773.0,97772.0,0.10004952]
[1736086091561,0.3098329,97773.0,97772.0,0.10004952]
[1736086093222,0.3098329,97773.0,97772.0,0.10013492]
[1736086095768,0.8211129,97773.0,97772.0,0.10013492]
[1736086095967,0.83144191,97773.0,97772.0,0.10013492]
[1736086098439,0.83133548,97773.0,97772.0,0.10013492]
[1736086099059,0.82441548,97773.0,97772.0,0.10013492]
[1736086099288,0.83133548,97773.0,97772.0,0.10013492]
[1736086099918,0.82441548,97773.0,97772.0,0.10013492]
[1736086100540,0.82441548,97773.0,97772.0,0.19630653]
[1736086103002,0.6300939,97773.0,97772.0,0.22144476]
[1736086103433,0.6300939,97773.0,97772.0,0.22654476]
[1736086104889,0.6260939,97773.0,97772.0,0.22654476]
[1736086105095,0.52210758,97773.0,97772.0,0.22654476]
[1736086105300,0.52610758,97773.0,97772.0,0.22654476]
[1736086105518,0.52210758,97773.0,97772.0,0.22654476]
[1736086105928,0.52110758,97773.0,97772.0,0.22654476]
[1736086106347,0.52510758,97773.0,97772.0,0.22654476]
[1736086107127,0.52610758,97773.0,97772.0,0.22654476]
[1736086107282,0.52510758,97773.0,97772.0,0.22654476]
[1736086107683,0.52510758,97773.0,97772.0,0.31855638]
[1736086107961,0.51128,97773.0,97772.0,0.31855638]
[1736086108208,0.52158434,97773.0,97772.0,0.31855638]
[1736086108478,0.52558434,97773.0,97772.0,0.31855638]
[1736086108956,0.52558434,97773.0,97772.0,0.22654476]
[1736086109197,0.51528,97773.0,97772.0,0.22654476]
[1736086109625,0.62958575,97773.0,97772.0,0.19630653]
[1736086109825,0.62958575,97773.0,97772.0,0.22144476]
[1736086110176,0.62958575,97773.0,97772.0,0.12144476]
[1736086110824,0.62958575,97773.0,97772.0,0.09630653]
[1736086111025,0.62958575,97773.0,97772.0,0.12144476]
[1736086117697,0.62558575,97773.0,97772.0,0.12144476]
[1736086118076,0.62858575,97773.0,97772.0,0.12144476]
[1736086118922,0.62875655,97773.0,97772.0,0.12144476]
[1736086126375,0.70755655,97773.0,97772.0,0.09630653]
[1736086126933,0.70755655,97773.0,97772.0,0.12144476]
[1736086127339,0.70755655,97773.0,97772.0,0.09630653]
[1736086128007,0.70755655,97773.0,97772.0,0.12144476]
[1736086128214,0.70755655,97773.0,97772.0,0.00013492]
[1736086128215,0.75345655,97773.0,97772.0,0.00013492]
[1736086128434,0.75345655,97773.0,97772.0,0.02527315]
[1736086130189,0.75345655,97773.0,97772.0,0.00013492]
[1736086130396,0.75345655,97773.0,97772.0,0.02527315]
[1736086132228,0.75345655,97773.0,97772.0,0.00013492]
[1736086132374,0.75345655,97773.0,97772.0,0.02527315]
[1736086133436,0.75345655,97773.0,97772.0,0.00013492]
[1736086134275,0.75345655,97773.0,97772.0,0.02527315]
[1736086136993,0.75466029,97773.0,97772.0,0.00013492]
[1736086137266,0.75466029,97773.0,97772.0,0.02527315]
[1736086137860,0.75466029,97773.0,97772.0,0.00013492]
[1736086137996,0.75466029,97773.0,97772.0,0.02527315]
[1736086140547,0.75466029,97773.0,97772.0,0.00013492]
[1736086146674,0.90466029,97773.0,97772.0,0.00013492]
[1736086147881,0.90766029,97773.0,97772.0,0.00013492]
[1736086148091,0.90466029,97773.0,97772.0,0.00013492]
[1736086148499,0.91366029,97773.0,97772.0,0.00013492]
[1736086152337,0.93666029,97773.0,97772.0,0.00013492]
[1736086164497,1.044475,97773.0,97772.0,9.2e-07]
[1736086166971,1.18209202,97773.0,97772.0,9.2e-07]
[1736086169682,1.044475,97773.0,97772.0,9.2e-07]
[1736086170866,1.051395,97773.0,97772.0,9.2e-07]
[1736086171066,0.94740868,97773.0,97772.0,9.2e-07]
[1736086172386,1.03887226,97773.0,97772.0,9.2e-07]
[1736086173199,0.94740868,97773.0,97772.0,9.2e-07]
[1736086174564,1.0850257,97773.0,97772.0,9.2e-07]
[1736086174772,1.18901202,97773.0,97772.0,9.2e-07]
[1736086176387,1.051395,97773.0,97772.0,9.2e-07]
[1736086177792,0.93666029,97773.0,97772.0,9.2e-07]
[1736086178001,0.94358029,97773.0,97772.0,9.2e-07]
[1736086178985,1.08080204,97773.0,97772.0,9.2e-07]
[1736086180365,0.94358029,97773.0,97772.0,9.2e-07]
[1736086181174,0.19799908,97772.0,97764.0,8.54e-05]
[1736086181383,0.19799908,97772.0,97764.0,0.00013493]
[1736086181384,0.43810032,97765.0,97764.0,0.00013493]
[1736086181646,0.94938032,97765.0,97764.0,0.00013493]
[1736086182271,0.95807403,97765.0,97764.0,0.00013493]
[1736086182762,0.96507403,97765.0,97764.0,0.00013493]
[1736086182992,1.04207403,97765.0,97764.0,0.00013493]
[1736086183242,1.06507403,97765.0,97764.0,0.00013493]
[1736086183456,1.10557403,97765.0,97764.0,0.00013493]
[1736086183935,1.11457403,97765.0,97764.0,0.00013493]
[1736086184388,1.10557403,97765.0,97764.0,0.00013493]
[1736086185193,1.1078838,97765.0,97764.0,0.00013493]
[1736086185890,1.1058838,97765.0,97764.0,0.00013493]
[1736086186309,1.1148838,97765.0,97764.0,0.00013493]
[1736086186585,1.12900359,97765.0,97764.0,0.00013493]
[1736086186962,1.11600359,97765.0,97764.0,0.00013493]
[1736086187442,1.12000359,97765.0,97764.0,0.00013493]
[1736086187672,1.12900359,97765.0,97764.0,0.00013493]
[1736086187903,1.11600359,97765.0,97764.0,0.00013493]
[1736086188358,1.12500359,97765.0,97764.0,0.00013493]
[1736086190094,1.13000359,97765.0,97764.0,0.00013493]
[1736086190527,1.26722534,97765.0,97764.0,0.00013493]
[1736086192903,1.13000359,97765.0,97764.0,0.00013493]
[1736086193888,1.13692359,97765.0,97764.0,0.00013493]
[1736086195349,1.27414534,97765.0,97764.0,0.00013493]
[1736086196764,1.13692359,97765.0,97764.0,0.00013493]
[1736086201337,1.13692359,97765.0,97751.0,0.0004]
[1736086201338,0.00382839,97757.0,97751.0,0.00026507]
[1736086201576,0.17682839,97751.0,97750.0,0.16525265]
[1736086201797,0.92239471,97751.0,97750.0,0.16530215]
[1736086202983,0.93139471,97751.0,97750.0,0.16530215]
[1736086203390,0.9814673,97751.0,97750.0,0.16530215]
[1736086203591,0.93139471,97751.0,97750.0,0.16530215]
[1736086204225,0.92239471,97751.0,97750.0,0.10392215]
[1736086205446,1.10658071,97727.0,97726.0,3.1e-07]
[1736086205651,1.10884047,97727.0,97726.0,3.1e-07]
[1736086206001,1.12787527,97727.0,97726.0,3.1e-07]
[1736086206207,1.11193208,97727.0,97726.0,3.1e-07]
[1736086207243,1.10501208,97727.0,97726.0,3.1e-07]
[1736086207613,1.14486286,97727.0,97726.0,3.1e-07]
[1736086207811,1.15178286,97727.0,97726.0,3.1e-07]
[1736086208013,1.14278286,97727.0,97726.0,3.1e-07]
[1736086208195,1.24976918,97727.0,97726.0,3.1e-07]
[1736086208401,1.25876918,97727.0,97726.0,3.1e-07]
[1736086209052,1.25184918,97727.0,97726.0,3.1e-07]
[1736086209330,1.25876918,97727.0,97726.0,3.1e-07]
[1736086209745,1.25184918,97727.0,97726.0,3.1e-07]
[1736086209924,1.25876918,97727.0,97726.0,3.1e-07]
[1736086210350,1.25184918,97727.0,97726.0,3.1e-07]
[1736086210499,1.25876918,97727.0,97726.0,3.1e-07]
[1736086210929,1.15478286,97727.0,97726.0,3.1e-07]
[1736086212314,1.1565272,97727.0,97726.0,3.1e-07]
[1736086212513,1.1404472,97727.0,97726.0,3.1e-07]
[1736086212722,1.1335272,97727.0,97726.0,3.1e-07]
[1736086212981,1.1404472,97727.0,97726.0,3.1e-07]
[1736086213350,1.1404472,97727.0,97726.0,8.571e-05]
[1736086214194,1.1335272,97727.0,97726.0,8.571e-05]
[1736086214394,1.0032272,97727.0,97726.0,8.571e-05]
[1736086214632,0.83935984,97727.0,97726.0,8.571e-05]
[1736086214835,0.97929642,97727.0,97726.0,8.571e-05]
[1736086218394,1.05559642,97727.0,97726.0,8.571e-05]
[1736086219944,1.10099642,97727.0,97726.0,8.571e-05]
[1736086220147,1.22798274,97727.0,97726.0,8.571e-05]
[1736086221235,1.20498274,97727.0,97726.0,8.571e-05]
[1736086221865,1.22798274,97727.0,97726.0,8.571e-05]
[1736086226642,1.22815354,97727.0,97726.0,8.571e-05]
[1736086227467,1.12416722,97727.0,97726.0,8.571e-05]
[1736086229014,1.11724722,97727.0,97726.0,8.571e-05]
[1736086229193,1.12416722,97727.0,97726.0,8.571e-05]
[1736086231313,0.173,97726.0,97719.0,0.09508571]
[1736086231523,0.43818532,97720.0,97719.0,0.09523442]
[1736086231729,0.94946532,97720.0,97719.0,0.09523442]
[1736086231957,0.95638532,97720.0,97719.0,0.09523442]
[1736086234312,0.96738532,97720.0,97719.0,0.09523442]
[1736086235313,0.96963031,97720.0,97719.0,0.09523442]
[1736086235736,0.99041818,97720.0,97719.0,0.09523442]
[1736086236790,1.06911818,97720.0,97719.0,0.09523442]
[1736086238772,1.06911818,97720.0,97719.0,0.09531982]
[1736086238987,1.06928898,97720.0,97719.0,0.09531982]
[1736086240675,1.06928898,97720.0,97719.0,0.09031982]
[1736086240889,1.06728898,97720.0,97719.0,0.09031982]
[1736086241113,1.05828898,97720.0,97719.0,0.09031982]
[1736086241344,1.06528898,97720.0,97719.0,0.09031982]
[1736086241538,1.06728898,97720.0,97719.0,0.09031982]
[1736086241750,1.06028898,97720.0,97719.0,0.09031982]
[1736086241954,1.06728898,97720.0,97719.0,0.09031982]
[1736086242377,0.98636473,97720.0,97719.0,0.09031982]
[1736086242585,0.99328473,97720.0,97719.0,0.09031982]
[1736086243196,0.99128473,97720.0,97719.0,0.09031982]
[1736086243853,0.99228473,97720.0,97719.0,0.09031982]
[1736086245100,0.98536473,97720.0,97719.0,0.09031982]
[1736086245316,0.99228473,97720.0,97719.0,0.09031982]
[1736086247008,0.96457686,97720.0,97719.0,0.09031982]
[1736086247233,0.97149686,97720.0,97719.0,0.09031982]
[1736086247657,0.96457686,97720.0,97719.0,0.09031982]
[1736086248311,0.97153686,97720.0,97719.0,0.18649143]
[1736086248989,0.96457686,97720.0,97719.0,0.18649143]
[1736086249196,0.97153686,97720.0,97719.0,0.18649143]
[1736086254444,0.97153686,97720.0,97719.0,0.09031982]
[1736086254647,0.97153686,97720.0,97719.0,0.18649143]
[1736086256114,1.05413686,97720.0,97719.0,0.18649143]
[1736086256519,1.05413686,97720.0,97719.0,0.09031982]
[1736086256690,1.04717686,97720.0,97719.0,0.09031982]
[1736086256894,1.05413686,97720.0,97719.0,0.09031982]
[1736086263615,1.1660778,97720.0,97719.0,0.09031982]
[1736086264795,1.07458831,97720.0,97719.0,0.09031982]
[1736086265902,1.1660778,97720.0,97719.0,0.09031982]
[1736086270912,1.07458831,97720.0,97719.0,0.09031982]
[1736086276301,1.21188618,97720.0,97719.0,0.09031982]
[1736086277784,1.07458831,97720.0,97719.0,0.09031982]
[1736086279095,1.21188618,97720.0,97719.0,0.09031982]
[1736086281726,1.07458831,97720.0,97719.0,0.09031982]
[1736086282541,1.06762831,97720.0,97719.0,0.09031982]
[1736086282740,1.07458831,97720.0,97719.0,0.09031982]
[1736086284073,1.21183038,97720.0,97719.0,0.09031982]
[1736086284946,1.21183038,97720.0,97719.0,0.00023411]
[1736086285387,1.29753249,97720.0,97719.0,0.00023411]
[1736086286774,1.21183038,97720.0,97719.0,0.00023411]
[1736086287417,1.07458831,97720.0,97719.0,0.00023411]
[1736086289871,1.21181695,97720.0,97719.0,0.00023411]
[1736086292913,1.07458831,97720.0,97719.0,0.00023411]
[1736086294169,1.21181695,97720.0,97719.0,0.00023411]
[1736086295237,1.11507695,97720.0,97719.0,0.00023411]
[1736086295478,1.09758831,97720.0,97719.0,0.00023411]
[1736086296312,1.32695002,97720.0,97719.0,0.00023411]
[1736086298717,1.09758831,97720.0,97719.0,0.00023411]
[1736086303054,1.09062831,97720.0,97719.0,0.00023411]
[1736086303306,1.09758831,97720.0,97719.0,0.00023411]
[1736086303508,1.08958831,97720.0,97719.0,0.00023411]
[1736086303713,1.09158831,97720.0,97719.0,0.00023411]
[1736086303922,1.10058831,97720.0,97719.0,0.00023411]
[1736086304072,1.07758831,97720.0,97719.0,0.00023411]
[1736086304293,1.06658831,97720.0,97719.0,0.00023411]
[1736086304700,1.05962831,97720.0,97719.0,0.00023411]
[1736086304902,1.06858831,97720.0,97719.0,0.00023411]
[1736086305284,1.07758831,97720.0,97719.0,0.00023411]
[1736086306964,1.127032,97720.0,97719.0,0.00023411]
[1736086307366,1.120072,97720.0,97719.0,0.00023411]
[1736086307576,1.127032,97720.0,97719.0,0.00023411]
[1736086307758,1.3559342,97720.0,97719.0,0.00023411]
[1736086309922,1.127032,97720.0,97719.0,0.00023411]
[1736086310937,1.07758831,97720.0,97719.0,0.00023411]
[1736086311153,1.30649051,97720.0,97719.0,0.00023411]
[1736086312785,1.07758831,97720.0,97719.0,0.00023411]
[1736086314490,1.07062831,97720.0,97719.0,0.00023411]
[1736086314664,1.07758831,97720.0,97719.0,0.00023411]
[1736086318518,1.15669222,97720.0,97719.0,0.00023411]
[1736086319929,1.07758831,97720.0,97719.0,0.00023411]
[1736086323236,0.173,97719.0,97718.0,5.1e-07]
[1736086323438,0.87126632,97719.0,97718.0,5e-08]
[1736086323638,0.87819253,97719.0,97718.0,5e-08]
[1736086324823,0.88719253,97719.0,97718.0,5e-08]
[1736086325552,0.88919253,97719.0,97718.0,5e-08]
[1736086325773,0.94051938,97719.0,97718.0,5e-08]
[1736086326188,0.88919253,97719.0,97718.0,5e-08]
[1736086328235,0.93569253,97719.0,97718.0,5e-08]
[1736086329317,0.94582414,97719.0,97718.0,5e-08]
[1736086331364,0.94582414,97719.0,97718.0,8.545e-05]
[1736086340067,0.92282414,97719.0,97718.0,8.545e-05]
[1736086340297,0.79332414,97719.0,97718.0,8.545e-05]
[1736086340515,0.80028414,97719.0,97718.0,8.545e-05]
[1736086341201,0.98338915,97719.0,97718.0,8.545e-05]
[1736086341623,0.97238915,97719.0,97718.0,8.545e-05]
[1736086342062,0.98138915,97719.0,97718.0,8.545e-05]
[1736086342312,0.98138915,97719.0,97715.0,0.07125798]
[1736086342313,0.78928414,97719.0,97715.0,0.07125798]
[1736086342524,0.15,97717.0,97715.0,0.07125798]
[1736086342739,0.25398632,97716.0,97715.0,0.07125798]
[1736086342957,0.26094632,97716.0,97715.0,0.07125798]
[1736086343166,0.44515332,97716.0,97715.0,0.07125798]
[1736086343624,0.44515332,97716.0,97715.0,0.07134338]
[1736086345319,0.45115332,97716.0,97715.0,0.07134338]
[1736086346505,0.29639478,97716.0,97715.0,0.07134338]
[1736086346730,0.29639478,97716.0,97715.0,0.07644338]
[1736086347285,0.30112074,97716.0,97715.0,0.07644338]
[1736086348414,0.11691374,97716.0,97715.0,0.10158161]
[1736086349303,0.11091374,97716.0,97715.0,0.10158161]
[1736086349490,0.01292742,97716.0,97715.0,0.10158161]
[1736086351477,0.00692742,97716.0,97715.0,0.10158161]
[1736086351693,0.01292742,97716.0,97715.0,0.10158161]
[1736086352603,0.00692742,97716.0,97715.0,0.10658161]
[1736086352800,0.00792742,97716.0,97715.0,0.10958161]
[1736086356345,0.11191374,97716.0,97715.0,0.10448161]
[1736086356771,0.11191374,97716.0,97715.0,0.07934338]
[1736086357198,0.11191374,97716.0,97715.0,0.10448161]
[1736086357430,0.11191374,97716.0,97715.0,0.07934338]
[1736086357865,0.11191374,97716.0,97715.0,0.10448161]
[1736086358070,0.11091374,97716.0,97715.0,0.10148161]
[1736086358277,0.11091374,97716.0,97715.0,0.09648161]
[1736086358505,0.11191374,97716.0,97715.0,0.07934338]
[1736086359159,0.11191374,97716.0,97715.0,0.07434338]
[1736086359367,0.15741374,97716.0,97715.0,0.07934338]
[1736086362090,0.15741374,97716.0,97715.0,0.10448161]
[1736086362520,0.15741374,97716.0,97715.0,0.07934338]
[1736086362761,0.15741374,97716.0,97715.0,0.10448161]
[1736086363616,0.15949972,97716.0,97715.0,0.10448161]
[1736086365343,0.15949972,97716.0,97715.0,0.07934338]
[1736086365710,0.15949972,97716.0,97715.0,0.0080854]
[1736086366202,0.15949972,97716.0,97715.0,0.03322363]
[1736086366394,0.15949972,97716.0,97715.0,0.0080854]
[1736086366631,0.15949972,97716.0,97715.0,0.03322363]
[1736086367703,0.24039972,97716.0,97715.0,0.0080854]
[1736086368143,0.24057052,97716.0,97715.0,0.0080854]
[1736086368507,0.75185052,97716.0,97715.0,0.0080854]
[1736086368897,0.75185052,97716.0,97715.0,0.03322363]
[1736086369096,0.71335052,97716.0,97715.0,0.02822363]
[1736086369317,0.71077288,97716.0,97715.0,0.09948161]
[1736086369848,0.70277288,97716.0,97715.0,0.09748161]
[1736086370056,0.70977288,97716.0,97715.0,0.09748161]
[1736086371596,0.70977288,97716.0,97715.0,0.09648161]
[1736086372007,0.70977288,97716.0,97715.0,0.10048161]
[1736086372210,0.71777288,97716.0,97715.0,0.10048161]
[1736086372442,0.70977288,97716.0,97715.0,0.10048161]
[1736086372654,0.70977288,97716.0,97715.0,0.02522363]
[1736086372907,0.71077288,97716.0,97715.0,0.02522363]
[1736086373109,0.70977288,97716.0,97715.0,0.02722363]
[1736086373517,0.70977288,97716.0,97715.0,0.02522363]
[1736086373720,0.70977288,97716.0,97715.0,8.54e-05]
[1736086373939,0.70977288,97716.0,97715.0,0.02522363]
[1736086374998,0.71377288,97716.0,97715.0,0.02522363]
[1736086377465,0.76297288,97716.0,97715.0,0.02522363]
[1736086378725,0.76297288,97716.0,97715.0,8.54e-05]
[1736086378940,0.91297288,97716.0,97715.0,8.54e-05]
[1736086379770,0.90897288,97716.0,97715.0,8.54e-05]
[1736086380187,0.91697288,97716.0,97715.0,8.54e-05]
[1736086380387,0.91797288,97716.0,97715.0,8.54e-05]
[1736086380838,1.0529592,97716.0,97715.0,8.54e-05]
[1736086381050,0.94797288,97716.0,97715.0,8.54e-05]
[1736086381255,0.9767149,97716.0,97715.0,4e-07]
[1736086382545,0.9617149,97716.0,97715.0,4e-07]
[1736086382748,0.51395602,97712.0,97711.0,0.0004]
[1736086382959,0.61794234,97712.0,97711.0,0.0004]
[1736086383181,1.13567889,97712.0,97711.0,0.0004]
[1736086383601,0.173,97703.0,97702.0,4e-07]
[1736086383810,0.91626632,97703.0,97702.0,8.163e-05]
[1736086384017,0.9184957,97703.0,97702.0,8.163e-05]
[1736086385324,0.94723772,97703.0,97702.0,6.3e-07]
[1736086385538,1.05122404,97703.0,97702.0,6.3e-07]
[1736086385983,1.06022404,97703.0,97702.0,6.3e-07]
[1736086386200,0.95623772,97703.0,97702.0,6.3e-07]
[1736086387019,0.96023772,97703.0,97702.0,6.3e-07]
[1736086387222,0.97050461,97703.0,97702.0,6.3e-07]
[1736086389864,0.99050293,97703.0,97702.0,6.3e-07]
[1736086390281,1.0653647,97703.0,97702.0,6.3e-07]
[1736086390487,1.16935102,97703.0,97702.0,3e-08]
[1736086390711,1.0653647,97703.0,97702.0,3e-08]
[1736086391503,1.0723647,97703.0,97702.0,3e-08]
[1736086391955,0.02874202,97698.0,97685.0,0.0144015]
[1736086392176,0.56584932,97686.0,97685.0,0.01445088]
[1736086392569,0.57284932,97686.0,97685.0,0.01445088]
[1736086393685,0.58084932,97686.0,97685.0,0.01445088]
[1736086394587,0.60384932,97686.0,97685.0,0.01445088]
[1736086395170,0.6246251,97686.0,97685.0,0.01445088]
[1736086395608,0.6256251,97686.0,97685.0,0.01445088]
[1736086395846,0.62776612,97686.0,97685.0,0.01445088]
[1736086396213,0.63803,97686.0,97685.0,0.01445088]
[1736086396823,0.76742562,97686.0,97685.0,0.01445088]
[1736086397241,1.27870562,97686.0,97685.0,0.01445088]
[1736086399467,1.17805202,97686.0,97685.0,0.01445088]
[1736086400528,1.14231,97686.0,97685.0,0.01445088]
[1736086400769,1.14935,97686.0,97685.0,0.01445088]
[1736086401390,1.14231,97686.0,97685.0,0.01445088]
[1736086401599,1.14935,97686.0,97685.0,0.01453628]
[1736086401804,1.25333632,97686.0,97685.0,0.01453628]
[1736086403350,1.14935,97686.0,97685.0,0.01453628]
[1736086407327,1.15364032,97686.0,97685.0,0.01453628]
[1736086408982,1.15364032,97686.0,97685.0,2.8e-07]
[1736086412491,1.14564032,97686.0,97685.0,2.8e-07]
[1736086412702,1.15364032,97686.0,97685.0,2.8e-07]
[1736086412915,1.15364032,97686.0,97684.0,0.1]
[1736086412916,0.32814202,97685.0,97684.0,0.01810428]
[1736086413128,0.32814202,97685.0,97674.0,8.54e-05]
[1736086413129,0.15,97677.0,97674.0,8.54e-05]
[1736086413342,0.27698632,97675.0,97674.0,0.00016664]
[1736086413567,0.35698632,97675.0,97674.0,0.00016664]
[1736086414204,0.86826632,97675.0,97674.0,0.00016664]
[1736086414839,1.05255032,97675.0,97674.0,0.00016664]
[1736086415675,1.05555032,97675.0,97674.0,0.00016664]
[1736086416921,1.05201925,97675.0,97674.0,0.00016664]